[Event "Titled Tuesday Blitz July 18 Late 2023"]
[White "Garakov, Mikhael"]
[Black "Sokolovsky, Yahli"]
[WhiteFideId "4169034"]
[BlackFideId "2820242"]
[WhiteElo "2528"]
[BlackElo "2730"]
[Result "0-1"]
[Round "4"]
[TimeControl "180+2"]
[Date "2023.07.18"]
[WhiteClock "0:00:00"]
[BlackClock "0:00:03"]
[Board "47"]

1. e4 {[%clk 0:03:00]}  d6 {[%clk 0:02:57]} 2. d4 {[%clk 0:03:00]}  Nf6 {[%clk 0:02:57]} 3. Nc3 {[%clk 0:03:01]}  g6 {[%clk 0:02:57]} 4. f4 {[%clk 0:03:01]}  Bg7 {[%clk 0:02:53]} 5. Nf3 {[%clk 0:03:01]}  Nc6 {[%clk 0:02:37]} 6. e5 {[%clk 0:02:55]}  dxe5 {[%clk 0:02:36]} 7. fxe5 {[%clk 0:02:55]}  Nd5 {[%clk 0:02:29]} 8. Nxd5 {[%clk 0:02:54]}  Qxd5 {[%clk 0:02:29]} 9. Be2 {[%clk 0:02:51]}  Bg4 {[%clk 0:02:27]} 10. Be3 {[%clk 0:02:50]}  O-O-O {[%clk 0:02:23]} 11. h3 {[%clk 0:02:36]}  Qe4 {[%clk 0:01:50]} 12. Kf2 {[%clk 0:00:59]}  Nxd4 {[%clk 0:01:15]} 13. Nxd4 {[%clk 0:00:59]}  Bxe2 {[%clk 0:01:13]} 14. Qxe2 {[%clk 0:00:59]}  Rxd4 {[%clk 0:01:02]} 15. Bxd4 {[%clk 0:01:00]}  Qxd4+ {[%clk 0:01:03]} 16. Qe3 {[%clk 0:01:01]}  Qxb2 {[%clk 0:01:01]} 17. Rhe1 {[%clk 0:00:57]}  Rd8 {[%clk 0:00:44]} 18. Kg1 {[%clk 0:00:53]}  Qd4 {[%clk 0:00:45]} 19. c3 {[%clk 0:00:43]}  Qxe3+ {[%clk 0:00:38]} 20. Rxe3 {[%clk 0:00:44]}  Rd2 {[%clk 0:00:34]} 21. a4 {[%clk 0:00:34]}  b6 {[%clk 0:00:22]} 22. a5 {[%clk 0:00:33]}  b5 {[%clk 0:00:23]} 23. a6 {[%clk 0:00:30]}  c6 {[%clk 0:00:20]} 24. c4 {[%clk 0:00:18]}  b4 {[%clk 0:00:09]} 25. c5 {[%clk 0:00:18]}  Rd4 {[%clk 0:00:07]} 26. Rb1 {[%clk 0:00:16]}  Rc4 {[%clk 0:00:07]} 27. Reb3 {[%clk 0:00:14]}  Bxe5 {[%clk 0:00:06]} 28. Rxb4 {[%clk 0:00:14]}  Rxc5 {[%clk 0:00:03]} 29. Rb7 {[%clk 0:00:10]}  Bc7 {[%clk 0:00:01]} 30. Rxa7 {[%clk 0:00:09]}  Ra5 {[%clk 0:00:02]} 31. Ra8+ {[%clk 0:00:07]}  Kd7 {[%clk 0:00:02]} 32. a7 {[%clk 0:00:00]}  c5 {[%clk 0:00:03]} 0-1


[Site "https://www.chess.com"]

[Event "Titled Tuesday Blitz July 18 Late 2023"]
[White "ArtemDyachuk"]
[Black "Fernandez, Daniel"]
[BlackFideId "2015390"]
[WhiteElo "2524"]
[BlackElo "2725"]
[Result "1-0"]
[Round "4"]
[TimeControl "180+2"]
[Date "2023.07.18"]
[WhiteClock "0:00:13"]
[BlackClock "0:00:47"]
[Board "49"]

1. e4 {[%clk 0:03:00]}  g6 {[%clk 0:03:00]} 2. d4 {[%clk 0:02:59]}  Bg7 {[%clk 0:02:59]} 3. Nc3 {[%clk 0:02:59]}  a6 {[%clk 0:02:59]} 4. a4 {[%clk 0:02:54]}  d6 {[%clk 0:02:59]} 5. Be3 {[%clk 0:02:54]}  b6 {[%clk 0:02:59]} 6. Bc4 {[%clk 0:02:52]}  e6 {[%clk 0:02:59]} 7. h4 {[%clk 0:02:49]}  h6 {[%clk 0:02:58]} 8. h5 {[%clk 0:02:43]}  g5 {[%clk 0:02:58]} 9. Qd2 {[%clk 0:02:43]}  Bb7 {[%clk 0:02:56]} 10. Nge2 {[%clk 0:02:42]}  Ne7 {[%clk 0:02:50]} 11. f4 {[%clk 0:02:41]}  d5 {[%clk 0:02:44]} 12. exd5 {[%clk 0:02:39]}  Nxd5 {[%clk 0:02:43]} 13. Nxd5 {[%clk 0:02:37]}  Bxd5 {[%clk 0:02:43]} 14. Bxd5 {[%clk 0:02:36]}  Qxd5 {[%clk 0:02:44]} 15. Nc3 {[%clk 0:02:36]}  Qd8 {[%clk 0:02:38]} 16. fxg5 {[%clk 0:02:34]}  hxg5 {[%clk 0:02:39]} 17. O-O-O {[%clk 0:02:34]}  Bh6 {[%clk 0:02:32]} 18. d5 {[%clk 0:02:33]}  e5 {[%clk 0:02:32]} 19. Rhf1 {[%clk 0:02:20]}  Nd7 {[%clk 0:02:27]} 20. Qf2 {[%clk 0:02:16]}  O-O {[%clk 0:02:09]} 21. d6 {[%clk 0:02:15]}  f5 {[%clk 0:02:08]} 22. Qe2 {[%clk 0:01:55]}  c6 {[%clk 0:01:51]} 23. Qc4+ {[%clk 0:01:37]}  Kh7 {[%clk 0:01:51]} 24. Rxf5 {[%clk 0:01:01]}  Rxf5 {[%clk 0:01:42]} 25. Qe4 {[%clk 0:01:01]}  Qf6 {[%clk 0:01:40]} 26. Rf1 {[%clk 0:01:00]}  Rf8 {[%clk 0:01:39]} 27. g4 {[%clk 0:01:00]}  Qxd6 {[%clk 0:01:36]} 28. Rxf5 {[%clk 0:00:57]}  Kg7 {[%clk 0:01:17]} 29. Bxg5 {[%clk 0:00:41]}  Nc5 {[%clk 0:01:10]} 30. Qxe5+ {[%clk 0:00:28]}  Qxe5 {[%clk 0:01:11]} 31. Bxh6+ {[%clk 0:00:28]}  Kxh6 {[%clk 0:01:09]} 32. Rxe5 {[%clk 0:00:29]}  Rf4 {[%clk 0:01:06]} 33. a5 {[%clk 0:00:26]}  Nd7 {[%clk 0:01:00]} 34. Re6+ {[%clk 0:00:26]}  Kg5 {[%clk 0:01:00]} 35. Rg6+ {[%clk 0:00:25]}  Kh4 {[%clk 0:01:00]} 36. axb6 {[%clk 0:00:20]}  Nxb6 {[%clk 0:01:01]} 37. b3 {[%clk 0:00:20]}  Nd7 {[%clk 0:00:56]} 38. h6 {[%clk 0:00:17]}  Ne5 {[%clk 0:00:56]} 39. Rg7 {[%clk 0:00:17]}  Kg3 {[%clk 0:00:55]} 40. h7 {[%clk 0:00:15]}  Rf1+ {[%clk 0:00:55]} 41. Kb2 {[%clk 0:00:15]}  Rh1 {[%clk 0:00:56]} 42. g5 {[%clk 0:00:15]}  Kf4 {[%clk 0:00:50]} 43. g6 {[%clk 0:00:14]}  c5 {[%clk 0:00:50]} 44. Rg8 {[%clk 0:00:13]}  Nxg6 {[%clk 0:00:50]} 45. Rxg6 {[%clk 0:00:13]}  Rxh7 {[%clk 0:00:51]} 46. Rxa6 {[%clk 0:00:13]}  Rh2 {[%clk 0:00:51]} 47. Ra4+ {[%clk 0:00:13]}  Ke5 {[%clk 0:00:51]} 48. Rc4 {[%clk 0:00:14]}  Kd6 {[%clk 0:00:47]} 49. Na4 {[%clk 0:00:13]} 1-0


[Site "https://www.chess.com"]

[Event "Titled Tuesday Blitz July 18 Late 2023"]
[White "Poltorak, Sebastian"]
[Black "Smirnov, Pavel"]
[WhiteFideId "1199498"]
[BlackFideId "4123425"]
[WhiteElo "2521"]
[BlackElo "2709"]
[Result "1-0"]
[Round "4"]
[TimeControl "180+2"]
[Date "2023.07.18"]
[WhiteClock "0:01:09"]
[BlackClock "0:00:18"]
[Board "51"]

1. e4 {[%clk 0:03:00]}  e5 {[%clk 0:02:56]} 2. Nc3 {[%clk 0:03:00]}  Nf6 {[%clk 0:02:55]} 3. d4 {[%clk 0:03:00]}  exd4 {[%clk 0:02:55]} 4. Qxd4 {[%clk 0:03:01]}  Nc6 {[%clk 0:02:55]} 5. Qd3 {[%clk 0:03:01]}  Bc5 {[%clk 0:02:51]} 6. Bg5 {[%clk 0:02:53]}  Bxf2+ {[%clk 0:02:49]} 7. Ke2 {[%clk 0:02:46]}  Bc5 {[%clk 0:02:41]} 8. Nd5 {[%clk 0:02:38]}  Be7 {[%clk 0:02:38]} 9. Nxe7 {[%clk 0:02:30]}  Qxe7 {[%clk 0:02:36]} 10. Re1 {[%clk 0:02:31]}  Qxe4+ {[%clk 0:02:29]} 11. Kd1 {[%clk 0:02:30]}  d5 {[%clk 0:02:12]} 12. Bxf6 {[%clk 0:02:21]}  Qxe1+ {[%clk 0:02:08]} 13. Kxe1 {[%clk 0:02:21]}  gxf6 {[%clk 0:02:09]} 14. Nf3 {[%clk 0:02:14]}  Be6 {[%clk 0:02:10]} 15. Nd4 {[%clk 0:02:12]}  O-O-O {[%clk 0:02:11]} 16. Nxc6 {[%clk 0:02:11]}  bxc6 {[%clk 0:02:11]} 17. Kf2 {[%clk 0:02:11]}  Kd7 {[%clk 0:02:07]} 18. Qd4 {[%clk 0:02:09]}  Rb8 {[%clk 0:02:05]} 19. Bd3 {[%clk 0:02:07]}  a5 {[%clk 0:02:03]} 20. Re1 {[%clk 0:02:04]}  Rhg8 {[%clk 0:02:01]} 21. Qxf6 {[%clk 0:01:54]}  Kd6 {[%clk 0:01:52]} 22. Bf5 {[%clk 0:01:52]}  Rbe8 {[%clk 0:01:51]} 23. Bxe6 {[%clk 0:01:48]}  fxe6 {[%clk 0:01:49]} 24. Qe5+ {[%clk 0:01:47]}  Kd7 {[%clk 0:01:48]} 25. g3 {[%clk 0:01:42]}  Rgf8+ {[%clk 0:01:46]} 26. Kg2 {[%clk 0:01:42]}  Rf5 {[%clk 0:01:47]} 27. Qe3 {[%clk 0:01:35]}  e5 {[%clk 0:01:45]} 28. Rf1 {[%clk 0:01:33]}  Rxf1 {[%clk 0:01:42]} 29. Kxf1 {[%clk 0:01:34]}  e4 {[%clk 0:01:41]} 30. Ke2 {[%clk 0:01:31]}  Re6 {[%clk 0:01:39]} 31. h4 {[%clk 0:01:28]}  Rg6 {[%clk 0:01:36]} 32. Qf4 {[%clk 0:01:24]}  c5 {[%clk 0:01:05]} 33. h5 {[%clk 0:01:17]}  Re6 {[%clk 0:01:02]} 34. Qf7+ {[%clk 0:01:17]}  Kd6 {[%clk 0:00:57]} 35. Qxh7 {[%clk 0:01:17]}  d4 {[%clk 0:00:57]} 36. b3 {[%clk 0:01:11]}  a4 {[%clk 0:00:28]} 37. h6 {[%clk 0:01:10]}  axb3 {[%clk 0:00:23]} 38. axb3 {[%clk 0:01:09]}  Re5 {[%clk 0:00:18]} 1-0


[Site "https://www.chess.com"]

[Event "Titled Tuesday Blitz July 18 Late 2023"]
[White "Volovich, Vasily"]
[Black "Philippe, Guillaume"]
[WhiteFideId "34169676"]
[BlackFideId "36048763"]
[WhiteElo "2704"]
[BlackElo "2519"]
[Result "1-0"]
[Round "4"]
[TimeControl "180+2"]
[Date "2023.07.18"]
[WhiteClock "0:00:11"]
[BlackClock "0:00:55"]
[Board "53"]

1. e4 {[%clk 0:03:00]}  e5 {[%clk 0:02:59]} 2. Nf3 {[%clk 0:03:00]}  Nc6 {[%clk 0:02:58]} 3. d4 {[%clk 0:03:01]}  exd4 {[%clk 0:02:57]} 4. Bc4 {[%clk 0:03:01]}  Nf6 {[%clk 0:02:57]} 5. O-O {[%clk 0:03:02]}  Nxe4 {[%clk 0:02:47]} 6. Re1 {[%clk 0:03:02]}  d5 {[%clk 0:02:44]} 7. Bxd5 {[%clk 0:03:03]}  Qxd5 {[%clk 0:02:45]} 8. Nc3 {[%clk 0:03:03]}  Qa5 {[%clk 0:02:46]} 9. Nxe4 {[%clk 0:03:04]}  Be7 {[%clk 0:02:40]} 10. Bg5 {[%clk 0:03:01]}  Be6 {[%clk 0:02:35]} 11. Bxe7 {[%clk 0:03:00]}  Nxe7 {[%clk 0:02:36]} 12. Qxd4 {[%clk 0:02:55]}  O-O {[%clk 0:02:36]} 13. Qc5 {[%clk 0:02:39]}  Nc6 {[%clk 0:02:33]} 14. Qxa5 {[%clk 0:02:29]}  Nxa5 {[%clk 0:02:33]} 15. Rad1 {[%clk 0:02:26]}  Rad8 {[%clk 0:02:27]} 16. Nd4 {[%clk 0:02:20]}  Bd7 {[%clk 0:02:24]} 17. Nc5 {[%clk 0:02:13]}  Bc8 {[%clk 0:02:24]} 18. Nb5 {[%clk 0:02:00]}  b6 {[%clk 0:02:22]} 19. Nd3 {[%clk 0:01:53]}  a6 {[%clk 0:02:15]} 20. Nc3 {[%clk 0:01:26]}  Rfe8 {[%clk 0:02:10]} 21. Nd5 {[%clk 0:01:18]}  Rxe1+ {[%clk 0:02:06]} 22. Rxe1 {[%clk 0:01:17]}  Kf8 {[%clk 0:02:04]} 23. Nxc7 {[%clk 0:01:11]}  Nc6 {[%clk 0:02:05]} 24. Nf4 {[%clk 0:01:01]}  Nd4 {[%clk 0:02:02]} 25. c3 {[%clk 0:00:56]}  Nc2 {[%clk 0:02:02]} 26. Rc1 {[%clk 0:00:54]}  Rd2 {[%clk 0:01:58]} 27. Ncd5 {[%clk 0:00:43]}  g5 {[%clk 0:01:46]} 28. Nxb6 {[%clk 0:00:42]}  Bf5 {[%clk 0:01:46]} 29. Nfd5 {[%clk 0:00:37]}  Kg7 {[%clk 0:01:44]} 30. h3 {[%clk 0:00:32]}  Be6 {[%clk 0:01:41]} 31. Nc7 {[%clk 0:00:30]}  Bxa2 {[%clk 0:01:39]} 32. Nxa6 {[%clk 0:00:29]}  f5 {[%clk 0:01:36]} 33. Nc7 {[%clk 0:00:24]}  h5 {[%clk 0:01:33]} 34. Nb5 {[%clk 0:00:23]}  g4 {[%clk 0:01:30]} 35. hxg4 {[%clk 0:00:23]}  hxg4 {[%clk 0:01:31]} 36. g3 {[%clk 0:00:22]}  Kg6 {[%clk 0:01:28]} 37. Na4 {[%clk 0:00:18]}  Bc4 {[%clk 0:01:24]} 38. Na3 {[%clk 0:00:13]}  Nxa3 {[%clk 0:01:24]} 39. bxa3 {[%clk 0:00:14]}  Ra2 {[%clk 0:01:21]} 40. Nb6 {[%clk 0:00:14]}  Be6 {[%clk 0:01:17]} 41. c4 {[%clk 0:00:14]}  Rxa3 {[%clk 0:01:15]} 42. c5 {[%clk 0:00:15]}  Ra6 {[%clk 0:01:12]} 43. Kf1 {[%clk 0:00:10]}  Kf6 {[%clk 0:01:10]} 44. Ke2 {[%clk 0:00:10]}  Ke5 {[%clk 0:01:07]} 45. Rc3 {[%clk 0:00:11]}  f4 {[%clk 0:01:04]} 46. gxf4+ {[%clk 0:00:11]}  Kxf4 {[%clk 0:01:03]} 47. Rc2 {[%clk 0:00:10]}  Ke4 {[%clk 0:01:02]} 48. Rb2 {[%clk 0:00:09]}  Kd4 {[%clk 0:00:50]} 49. c6 {[%clk 0:00:10]}  Kc5 {[%clk 0:00:51]} 50. Nd7+ {[%clk 0:00:06]}  Kxc6 {[%clk 0:00:51]} 51. Nb8+ {[%clk 0:00:06]}  Kc5 {[%clk 0:00:48]} 52. Nxa6+ {[%clk 0:00:07]}  Kd4 {[%clk 0:00:49]} 53. Rb4+ {[%clk 0:00:06]}  Bc4+ {[%clk 0:00:50]} 54. Rxc4+ {[%clk 0:00:06]}  Kxc4 {[%clk 0:00:50]} 55. Ke3 {[%clk 0:00:07]}  Kb5 {[%clk 0:00:51]} 56. Kf4 {[%clk 0:00:07]}  Kxa6 {[%clk 0:00:51]} 57. Kxg4 {[%clk 0:00:07]}  Kb7 {[%clk 0:00:52]} 58. Kg5 {[%clk 0:00:08]}  Kc7 {[%clk 0:00:53]} 59. Kf6 {[%clk 0:00:08]}  Kd6 {[%clk 0:00:53]} 60. f4 {[%clk 0:00:08]}  Kd5 {[%clk 0:00:54]} 61. f5 {[%clk 0:00:08]}  Ke4 {[%clk 0:00:55]} 62. Ke6 {[%clk 0:00:08]}  Kf3 {[%clk 0:00:56]} 63. f6 {[%clk 0:00:09]}  Kg4 {[%clk 0:00:57]} 64. f7 {[%clk 0:00:10]}  Kf4 {[%clk 0:00:58]} 65. f8=Q+ {[%clk 0:00:11]}  Kg4 {[%clk 0:00:55]} 66. Qf5+ {[%clk 0:00:11]} 1-0


[Site "https://www.chess.com"]

[Event "Titled Tuesday Blitz July 18 Late 2023"]
[White "Haszon, David"]
[Black "Wieczorek, Oskar"]
[WhiteFideId "733610"]
[BlackFideId "1133950"]
[WhiteElo "2518"]
[BlackElo "2703"]
[Result "0-1"]
[Round "4"]
[TimeControl "180+2"]
[Date "2023.07.18"]
[WhiteClock "0:02:05"]
[BlackClock "0:01:28"]
[Board "54"]

1. d4 {[%clk 0:02:59]}  Nf6 {[%clk 0:02:59]} 2. Bf4 {[%clk 0:02:58]}  Ng8 {[%clk 0:02:59]} 3. Nc3 {[%clk 0:02:58]}  d6 {[%clk 0:02:59]} 4. e4 {[%clk 0:02:58]}  c6 {[%clk 0:02:59]} 5. Qd2 {[%clk 0:02:57]}  g6 {[%clk 0:03:00]} 6. O-O-O {[%clk 0:02:57]}  Bg7 {[%clk 0:03:01]} 7. h4 {[%clk 0:02:57]}  h6 {[%clk 0:03:01]} 8. h5 {[%clk 0:02:57]}  g5 {[%clk 0:03:01]} 9. Be3 {[%clk 0:02:57]}  Nf6 {[%clk 0:02:58]} 10. f4 {[%clk 0:02:55]}  Ng4 {[%clk 0:02:58]} 11. fxg5 {[%clk 0:02:53]}  Nxe3 {[%clk 0:02:59]} 12. Qxe3 {[%clk 0:02:54]}  hxg5 {[%clk 0:02:59]} 13. Kb1 {[%clk 0:02:53]}  Bh6 {[%clk 0:02:59]} 14. e5 {[%clk 0:02:51]}  d5 {[%clk 0:02:58]} 15. Be2 {[%clk 0:02:49]}  g4 {[%clk 0:02:52]} 16. Qd3 {[%clk 0:02:48]}  Be6 {[%clk 0:02:45]} 17. Rh4 {[%clk 0:02:47]}  Qd7 {[%clk 0:02:44]} 18. Na4 {[%clk 0:02:46]}  Na6 {[%clk 0:02:42]} 19. Rf1 {[%clk 0:02:43]}  b5 {[%clk 0:02:28]} 20. Nc5 {[%clk 0:02:30]}  Nxc5 {[%clk 0:02:26]} 21. dxc5 {[%clk 0:02:31]}  Bg5 {[%clk 0:02:16]} 22. Rh1 {[%clk 0:02:30]}  d4 {[%clk 0:02:03]} 23. Bd1 {[%clk 0:02:22]}  Qd5 {[%clk 0:02:01]} 24. b3 {[%clk 0:02:21]}  Qxe5 {[%clk 0:01:53]} 25. Ne2 {[%clk 0:02:20]}  O-O-O {[%clk 0:01:49]} 26. Ng3 {[%clk 0:02:17]}  Qe3 {[%clk 0:01:29]} 27. Ne4 {[%clk 0:02:05]}  Qc1# {[%clk 0:01:28]} 0-1


[Site "https://www.chess.com"]

[Event "Titled Tuesday Blitz July 18 Late 2023"]
[White "Quintiliano Pinto, Renato R."]
[Black "Balague Camps, Marc"]
[WhiteFideId "2117568"]
[BlackFideId "2297914"]
[WhiteElo "2700"]
[BlackElo "2517"]
[Result "1-0"]
[Round "4"]
[TimeControl "180+2"]
[Date "2023.07.18"]
[WhiteClock "0:01:19"]
[BlackClock "0:00:52"]
[Board "55"]

1. e4 {[%clk 0:02:57]}  c5 {[%clk 0:03:00]} 2. Nf3 {[%clk 0:02:57]}  e6 {[%clk 0:03:00]} 3. c3 {[%clk 0:02:56]}  Nf6 {[%clk 0:03:00]} 4. e5 {[%clk 0:02:56]}  Nd5 {[%clk 0:03:01]} 5. d4 {[%clk 0:02:57]}  cxd4 {[%clk 0:03:02]} 6. cxd4 {[%clk 0:02:58]}  d6 {[%clk 0:03:03]} 7. Bc4 {[%clk 0:02:56]}  Be7 {[%clk 0:03:01]} 8. O-O {[%clk 0:02:56]}  O-O {[%clk 0:03:02]} 9. Qe2 {[%clk 0:02:52]}  b6 {[%clk 0:03:02]} 10. Rd1 {[%clk 0:02:50]}  Bb7 {[%clk 0:02:59]} 11. Bxd5 {[%clk 0:02:50]}  exd5 {[%clk 0:02:58]} 12. e6 {[%clk 0:02:50]}  Nc6 {[%clk 0:02:46]} 13. Nc3 {[%clk 0:02:50]}  Na5 {[%clk 0:02:38]} 14. g3 {[%clk 0:02:47]}  f6 {[%clk 0:02:29]} 15. h4 {[%clk 0:02:42]}  a6 {[%clk 0:02:29]} 16. h5 {[%clk 0:02:41]}  b5 {[%clk 0:02:28]} 17. Nh4 {[%clk 0:02:38]}  f5 {[%clk 0:02:22]} 18. Ng2 {[%clk 0:02:34]}  b4 {[%clk 0:02:10]} 19. Nb1 {[%clk 0:02:32]}  Bc6 {[%clk 0:02:10]} 20. Nf4 {[%clk 0:02:28]}  Rc8 {[%clk 0:02:04]} 21. Nd2 {[%clk 0:02:27]}  Nc4 {[%clk 0:02:03]} 22. Nf3 {[%clk 0:02:19]}  Bb5 {[%clk 0:02:01]} 23. Qe1 {[%clk 0:02:15]}  Nb6 {[%clk 0:02:00]} 24. Qxb4 {[%clk 0:02:13]}  Rc2 {[%clk 0:02:00]} 25. Re1 {[%clk 0:02:03]}  Qc7 {[%clk 0:01:58]} 26. Be3 {[%clk 0:01:55]}  Qc4 {[%clk 0:01:58]} 27. Qa5 {[%clk 0:01:48]}  Rb8 {[%clk 0:01:36]} 28. b3 {[%clk 0:01:47]}  Qc3 {[%clk 0:01:29]} 29. Qxc3 {[%clk 0:01:46]}  Rxc3 {[%clk 0:01:30]} 30. a4 {[%clk 0:01:43]}  Be8 {[%clk 0:01:27]} 31. a5 {[%clk 0:01:43]}  Na8 {[%clk 0:01:28]} 32. Nxd5 {[%clk 0:01:43]}  Rxe3 {[%clk 0:01:14]} 33. Rxe3 {[%clk 0:01:34]}  Kf8 {[%clk 0:01:15]} 34. Rc1 {[%clk 0:01:28]}  Bxh5 {[%clk 0:01:14]} 35. Nxe7 {[%clk 0:01:25]}  Kxe7 {[%clk 0:01:13]} 36. d5 {[%clk 0:01:25]}  Rb7 {[%clk 0:01:00]} 37. Nd4 {[%clk 0:01:22]}  Nc7 {[%clk 0:00:55]} 38. Nxf5+ {[%clk 0:01:19]}  Kf6 {[%clk 0:00:54]} 39. Nxd6 {[%clk 0:01:20]}  Rb8 {[%clk 0:00:52]} 40. Rxc7 {[%clk 0:01:19]} 1-0


[Site "https://www.chess.com"]

[Event "Titled Tuesday Blitz July 18 Late 2023"]
[White "Kisic, Bozidar"]
[Black "Alex_Sahakyan2006"]
[WhiteFideId "16500350"]
[WhiteElo "2508"]
[BlackElo "2661"]
[Result "1/2-1/2"]
[Round "4"]
[TimeControl "180+2"]
[Date "2023.07.18"]
[WhiteClock "0:00:07"]
[BlackClock "0:00:05"]
[Board "59"]

1. d4 {[%clk 0:02:58]}  Nf6 {[%clk 0:03:00]} 2. Bg5 {[%clk 0:02:57]}  Ne4 {[%clk 0:02:58]} 3. h4 {[%clk 0:02:57]}  d5 {[%clk 0:02:58]} 4. e3 {[%clk 0:02:54]}  c5 {[%clk 0:02:58]} 5. Nd2 {[%clk 0:02:52]}  Nxd2 {[%clk 0:02:46]} 6. Qxd2 {[%clk 0:02:52]}  Nc6 {[%clk 0:02:47]} 7. Nf3 {[%clk 0:02:47]}  Qb6 {[%clk 0:02:43]} 8. Be2 {[%clk 0:02:27]}  Bg4 {[%clk 0:02:35]} 9. O-O {[%clk 0:02:19]}  e6 {[%clk 0:02:26]} 10. Rad1 {[%clk 0:01:45]}  Bd6 {[%clk 0:02:18]} 11. c4 {[%clk 0:01:44]}  h6 {[%clk 0:01:48]} 12. dxc5 {[%clk 0:01:21]}  Qxc5 {[%clk 0:01:24]} 13. cxd5 {[%clk 0:01:12]}  exd5 {[%clk 0:01:24]} 14. Qxd5 {[%clk 0:01:08]}  Qxd5 {[%clk 0:01:24]} 15. Rxd5 {[%clk 0:01:07]}  hxg5 {[%clk 0:01:25]} 16. Rxd6 {[%clk 0:01:07]}  gxh4 {[%clk 0:01:25]} 17. Rfd1 {[%clk 0:01:00]}  Ke7 {[%clk 0:01:07]} 18. Bb5 {[%clk 0:00:59]}  Rad8 {[%clk 0:00:28]} 19. Rxd8 {[%clk 0:00:57]}  Nxd8 {[%clk 0:00:29]} 20. Rd4 {[%clk 0:00:42]}  Bxf3 {[%clk 0:00:23]} 21. gxf3 {[%clk 0:00:42]}  a6 {[%clk 0:00:21]} 22. Ba4 {[%clk 0:00:31]}  b5 {[%clk 0:00:21]} 23. Bb3 {[%clk 0:00:30]}  Rh6 {[%clk 0:00:10]} 24. a4 {[%clk 0:00:26]}  Nc6 {[%clk 0:00:04]} 25. Re4+ {[%clk 0:00:26]}  Kf8 {[%clk 0:00:03]} 26. Bd5 {[%clk 0:00:24]}  Ne7 {[%clk 0:00:02]} 27. Bb3 {[%clk 0:00:20]}  g5 {[%clk 0:00:02]} 28. axb5 {[%clk 0:00:18]}  axb5 {[%clk 0:00:03]} 29. Rb4 {[%clk 0:00:17]}  Rb6 {[%clk 0:00:03]} 30. Bc4 {[%clk 0:00:16]}  Rf6 {[%clk 0:00:03]} 31. Rxb5 {[%clk 0:00:15]}  Rg6 {[%clk 0:00:02]} 32. Bd3 {[%clk 0:00:15]}  Rd6 {[%clk 0:00:01]} 33. Bc2 {[%clk 0:00:11]}  f6 {[%clk 0:00:01]} 34. Bb3 {[%clk 0:00:12]}  Rd2 {[%clk 0:00:01]} 35. Rb8+ {[%clk 0:00:12]}  Kg7 {[%clk 0:00:02]} 36. Rb7 {[%clk 0:00:12]}  Kf8 {[%clk 0:00:02]} 37. Kg2 {[%clk 0:00:12]}  Rxb2 {[%clk 0:00:02]} 38. Rb8+ {[%clk 0:00:11]}  Kg7 {[%clk 0:00:03]} 39. Re8 {[%clk 0:00:11]}  Rxb3 {[%clk 0:00:03]} 40. Rxe7+ {[%clk 0:00:12]}  Kg6 {[%clk 0:00:03]} 41. Kh3 {[%clk 0:00:11]}  Rb2 {[%clk 0:00:03]} 42. Kg2 {[%clk 0:00:12]}  Ra2 {[%clk 0:00:04]} 43. e4 {[%clk 0:00:12]}  Ra6 {[%clk 0:00:02]} 44. Rd7 {[%clk 0:00:12]}  Rb6 {[%clk 0:00:02]} 45. Rd3 {[%clk 0:00:12]}  Re6 {[%clk 0:00:03]} 46. Kh3 {[%clk 0:00:12]}  f5 {[%clk 0:00:03]} 47. Re3 {[%clk 0:00:09]}  Re5 {[%clk 0:00:03]} 48. Re1 {[%clk 0:00:08]}  Re6 {[%clk 0:00:02]} 49. Re2 {[%clk 0:00:08]}  fxe4 {[%clk 0:00:03]} 50. fxe4 {[%clk 0:00:08]}  Rf6 {[%clk 0:00:03]} 51. e5 {[%clk 0:00:06]}  Rf3+ {[%clk 0:00:03]} 52. Kg2 {[%clk 0:00:07]}  g4 {[%clk 0:00:02]} 53. e6 {[%clk 0:00:07]}  h3+ {[%clk 0:00:03]} 54. Kh2 {[%clk 0:00:06]}  Rf8 {[%clk 0:00:03]} 55. Kg3 {[%clk 0:00:05]}  Kf5 {[%clk 0:00:03]} 56. e7 {[%clk 0:00:04]}  Re8 {[%clk 0:00:03]} 57. f3 {[%clk 0:00:04]}  gxf3 {[%clk 0:00:04]} 58. Kxf3 {[%clk 0:00:05]}  Kf6 {[%clk 0:00:04]} 59. Kg3 {[%clk 0:00:05]}  Rxe7 {[%clk 0:00:04]} 60. Rxe7 {[%clk 0:00:06]}  Kxe7 {[%clk 0:00:05]} 61. Kxh3 {[%clk 0:00:07]} 1/2-1/2


[Site "https://www.chess.com"]